[Event "FIDE Online Olympiad Top Division 2020"]
[Site "Online"]
[Date "2020.08.22"]
[Round "?"]
[White "Aryangholami"]
[Black "RovenVogel17"]
[Result "1/2-1/2"]
[ECO "D02"]
[WhiteElo "2384"]
[BlackElo "1994"]
[Annotator "NA"]
[PlyCount "106"]
[EventDate "2020.08.21"]
[SourceTitle "playchess.com"]
[Source "ChessBase"]
[SourceQuality "1"]
[TimeControl "900+5"]

1. Nf3 {[%emt 0:00:07]} d5 {[%emt 0:00:04]} 2. d4 {[%emt 0:00:03]} Nf6 {[%emt 0:00:02]} 3. Bf4 {[%emt 0:00:01]} c5 {[%emt 0:00:06]} 4. e3 {[%emt 0:00:06]} Nc6 {[%emt 0:00:05]} 5. Nbd2 {[%emt 0:00:08]} cxd4 {[%emt 0:00:29]} 6. exd4 {[%emt 0:00:01]} g6 {[%emt 0:00:35]} 7. c3 {[%emt 0:01:06]} Nh5 {[%emt 0:00:13]} 8. Bg5 {[%emt 0:01:41]} Bg7 {[%emt 0:01:07]} 9. Bb5 {[%emt 0:00:43]} O-O {[%emt 0:00:08]} 10. O-O {[%emt 0:00:20]} f6 {[%emt 0:01:49]} 11. Be3 {[%emt 0:01:54]} e5 {[%emt 0:02:15]} 12. dxe5 {[%emt 0:03:30]} fxe5 {[%emt 0:00:02]} 13. Qb3 {[%emt 0:00:10]} Kh8 {[%emt 0:00:22]} 14. Rad1 {[%emt 0:00:48]} Be6 {[%emt 0:01:51]} 15. Qa4 {[%emt 0:01:04]} Bd7 {[%emt 0:01:23]} 16. Qb3 {[%emt 0:01:16]} Be6 {[%emt 0:01:13]} 17. Qa4 {[%emt 0:00:05]} Qc7 {[%emt 0:00:41]} 18. Rfe1 {[%emt 0:00:46]} a6 {[%emt 0:00:28]} 19. Bxc6 {[%emt 0:00:01]} bxc6 {[%emt 0:00:02]} 20. Qh4 {[%emt 0:00:37]} Bg8 {[%emt 0:00:07]} 21. Nb3 {[%emt 0:01:13]} Nf4 {[%emt 0:00:44]} 22. Nc5 {[%emt 0:00:16]} Rf5 {[%emt 0:01:35]} 23. Bxf4 {[%emt 0:00:06]} Rxf4 {[%emt 0:00:02]} 24. Qg3 {[%emt 0:00:04]} Rf5 {[%emt 0:01:09]} 25. Nd4 {[%emt 0:00:02]} Rh5 {[%emt 0:00:20]} 26. Nde6 {[%emt 0:00:05]} Qe7 {[%emt 0:00:07]} 27. Nxg7 {[%emt 0:00:07]} Kxg7 {[%emt 0:00:01]} 28. b4 {[%emt 0:00:25]} a5 {[%emt 0:00:03]} 29. a3 {[%emt 0:00:04]} Rf8 {[%emt 0:00:03]} 30. Rd2 {[%emt 0:00:08]} Rg5 {[%emt 0:00:04]} 31. Qh3 {[%emt 0:00:06]} Rf4 {[%emt 0:00:03]} 32. Rde2 {[%emt 0:00:05]} e4 {[%emt 0:00:03]} 33. f3 {[%emt 0:00:06]} Rh4 {[%emt 0:00:17]} 34. Qxh4 {[%emt 0:00:24]} Rxg2+ {[%emt 0:00:02]} 35. Kxg2 {[%emt 0:00:00]} Qxh4 {[%emt 0:00:00]} 36. fxe4 {[%emt 0:00:01]} dxe4 {[%emt 0:00:02]} 37. Nxe4 {[%emt 0:00:02]} Bd5 {[%emt 0:00:01]} 38. Re3 {[%emt 0:00:02]} Qg4+ {[%emt 0:00:02]} 39. Kf2 {[%emt 0:00:01]} Qf4+ {[%emt 0:00:02]} 40. Kg1 {[%emt 0:00:02]} axb4 {[%emt 0:00:06]} 41. axb4 {[%emt 0:00:00]} h5 {[%emt 0:00:14]} 42. Nf2 {[%emt 0:00:23]} h4 {[%emt 0:00:02]} 43. h3 {[%emt 0:00:02]} Qf5 {[%emt 0:00:11]} 44. Re7+ {[%emt 0:00:09]} Bf7 {[%emt 0:00:03]} 45. R1e3 {[%emt 0:00:02]} Qg5+ {[%emt 0:00:03]} 46. Kf1 {[%emt 0:00:02]} Qf5 {[%emt 0:00:03]} 47. Ke2 {[%emt 0:00:03]} Kg8 {[%emt 0:00:02]} 48. R7e4 {[%emt 0:00:02]} Bd5 {[%emt 0:00:07]} 49. Rxh4 {[%emt 0:00:02]} Qc2+ {[%emt 0:00:02]} 50. Ke1 {[%emt 0:00:04]} Qc1+ {[%emt 0:00:01]} 51. Ke2 {[%emt 0:00:02]} Qc2+ {[%emt 0:00:02]} 52. Ke1 {[%emt 0:00:12]} Qc1+ {[%emt 0:00:02]} 53. Ke2 {[%emt 0:00:21]} Qc2+ {[%emt 0:00:02]} 1/2-1/2

[Event "FIDE Online Olympiad Top Division 2020"]
[Site "Online"]
[Date "2020.08.22"]
[Round "?"]
[White "Melamed, Tatjana"]
[Black "Pham Le Thao, Nguyen"]
[Result "0-1"]
[ECO "B40"]
[WhiteElo "2342"]
[BlackElo "2575"]
[Annotator "RC"]
[PlyCount "150"]
[EventDate "2020.08.21"]
[SourceTitle "playchess.com"]
[Source "ChessBase"]
[SourceQuality "1"]
[TimeControl "900+5"]

1. e4 {[%emt 0:00:02]} c5 {[%emt 0:00:04]} 2. Nf3 {[%emt 0:00:02]} e6 {[%emt 0:00:02]} 3. g3 {[%emt 0:00:05]} b6 {[%emt 0:00:22]} 4. d4 {[%emt 0:00:37]} cxd4 {[%emt 0:00:28]} 5. Nxd4 {[%emt 0:00:03]} Bb7 {[%emt 0:00:01]} 6. Bg2 {[%emt 0:00:01]} a6 {[%emt 0:00:03]} 7. O-O {[%emt 0:00:02]} d6 {[%emt 0:00:06]} 8. Qe2 {[%emt 0:01:08]} Nd7 {[%emt 0:00:07]} 9. Nc3 {[%emt 0:00:55]} Rc8 {[%emt 0:00:51]} 10. Be3 {[%emt 0:01:04]} Qc7 {[%emt 0:00:28]} 11. Rad1 {[%emt 0:00:39]} Ngf6 {[%emt 0:00:06]} 12. h3 {[%emt 0:00:25]} Be7 {[%emt 0:00:15]} 13. Kh2 {[%emt 0:00:06]} O-O {[%emt 0:00:15]} 14. f4 {[%emt 0:00:18]} Rfd8 {[%emt 0:00:52]} 15. a4 {[%emt 0:00:21]} Bf8 {[%emt 0:00:36]} 16. Bc1 {[%emt 0:02:42]} Qb8 {[%emt 0:01:15]} 17. f5 {[%emt 0:00:51]} e5 {[%emt 0:00:27]} 18. Nb3 {[%emt 0:00:03]} Qa8 {[%emt 0:01:22]} 19. Bg5 {[%emt 0:00:35]} h6 {[%emt 0:00:07]} 20. Bh4 {[%emt 0:00:07]} Re8 {[%emt 0:01:30]} 21. Nd5 {[%emt 0:01:56]} Nxd5 {[%emt 0:00:19]} 22. exd5 {[%emt 0:00:01]} Be7 {[%emt 0:00:46]} 23. Bxe7 {[%emt 0:00:14]} Rxe7 {[%emt 0:00:01]} 24. Nd4 {[%emt 0:00:45]} Nf6 {[%emt 0:00:12]} 25. Nc6 {[%emt 0:00:05]} Ree8 {[%emt 0:00:25]} 26. c4 {[%emt 0:00:05]} Bxc6 {[%emt 0:00:32]} 27. dxc6 {[%emt 0:00:03]} e4 {[%emt 0:00:01]} 28. Rxd6 {[%emt 0:00:28]} Rxc6 {[%emt 0:00:03]} 29. Rfd1 {[%emt 0:00:15]} Qc8 {[%emt 0:00:08]} 30. Rxc6 {[%emt 0:00:07]} Qxc6 {[%emt 0:00:02]} 31. b3 {[%emt 0:00:01]} Qc5 {[%emt 0:00:11]} 32. Re1 {[%emt 0:00:49]} a5 {[%emt 0:00:21]} 33. Qe3 {[%emt 0:00:03]} Qd6 {[%emt 0:00:17]} 34. Re2 {[%emt 0:00:06]} h5 {[%emt 0:01:04]} 35. Rd2 {[%emt 0:00:07]} Qc7 {[%emt 0:00:03]} 36. Qf4 {[%emt 0:00:04]} Qc5 {[%emt 0:00:35]} 37. Re2 {[%emt 0:00:13]} e3 {[%emt 0:00:14]} 38. g4 {[%emt 0:00:09]} Qe5 {[%emt 0:00:19]} 39. Qxe5 {[%emt 0:00:03]} Rxe5 {[%emt 0:00:00]} 40. Kg3 {[%emt 0:00:02]} hxg4 {[%emt 0:01:01]} 41. hxg4 {[%emt 0:00:03]} Nd7 {[%emt 0:00:06]} 42. Kf4 {[%emt 0:00:08]} f6 {[%emt 0:00:01]} 43. Rxe3 {[%emt 0:00:04]} Rxe3 {[%emt 0:00:02]} 44. Kxe3 {[%emt 0:00:01]} Nc5 {[%emt 0:00:00]} 45. Kd4 {[%emt 0:00:04]} Nxb3+ {[%emt 0:00:03]} 46. Kd5 {[%emt 0:00:01]} Nc5 {[%emt 0:00:03]} 47. Kc6 {[%emt 0:00:14]} Nxa4 {[%emt 0:00:01]} 48. Bf3 {[%emt 0:00:06]} Kf8 {[%emt 0:00:05]} 49. Kb5 {[%emt 0:00:13]} Nb2 {[%emt 0:00:35]} 50. Bd5 {[%emt 0:00:12]} a4 {[%emt 0:00:39]} 51. Kxb6 {[%emt 0:00:03]} a3 {[%emt 0:00:23]} 52. c5 {[%emt 0:00:02]} Na4+ {[%emt 0:00:01]} 53. Kc6 {[%emt 0:01:26]} Ke7 {[%emt 0:00:02]} 54. Bb3 {[%emt 0:00:11]} Nc3 {[%emt 0:00:02]} 55. Kb7 {[%emt 0:00:01]} a2 {[%emt 0:00:19]} 56. Bxa2 {[%emt 0:00:03]} Nxa2 {[%emt 0:00:00]} 57. c6 {[%emt 0:00:01]} Nc3 {[%emt 0:00:02]} 58. c7 {[%emt 0:00:01]} Ne4 {[%emt 0:00:02]} 59. c8=N+ {[%emt 0:00:04]} Kd7 {[%emt 0:00:04]} 60. Nb6+ {[%emt 0:00:06]} Kd6 {[%emt 0:00:01]} 61. Nc4+ {[%emt 0:00:25]} Kd5 {[%emt 0:00:01]} 62. Ne3+ {[%emt 0:00:08]} Ke5 {[%emt 0:00:04]} 63. Ng2 {[%emt 0:00:16]} Nf2 {[%emt 0:00:02]} 64. Kc6 {[%emt 0:00:12]} Nxg4 {[%emt 0:00:03]} 65. Nh4 {[%emt 0:00:12]} Ne3 {[%emt 0:00:02]} 66. Kd7 {[%emt 0:00:02]} Nxf5 {[%emt 0:00:04]} 67. Nf3+ {[%emt 0:00:05]} Kf4 {[%emt 0:00:03]} 68. Nd2 {[%emt 0:00:02]} Nd4 {[%emt 0:00:08]} 69. Kd6 {[%emt 0:00:02]} g5 {[%emt 0:00:08]} 70. Kd5 {[%emt 0:00:02]} Nf3 {[%emt 0:00:01]} 71. Nf1 {[%emt 0:00:01]} f5 {[%emt 0:00:05]} 72. Ke6 {[%emt 0:00:04]} g4 {[%emt 0:00:03]} 73. Kf6 {[%emt 0:00:03]} Ng5 {[%emt 0:00:06]} 74. Kg6 {[%emt 0:00:03]} Ne4 {[%emt 0:00:01]} 75. Kh6 {[%emt 0:00:15]} g3 {[%emt 0:00:02]} 0-1

[Event "FIDE Online Olympiad Top Division 2020"]
[Site "Online"]
[Date "2020.08.21"]
[Round "?"]
[White "aridannie"]
[Black "archess2"]
[Result "1-0"]
[ECO "B11"]
[WhiteElo "2329"]
[BlackElo "2164"]
[Annotator "ChessBase"]
[PlyCount "99"]
[EventDate "2020.08.21"]
[SourceTitle "playchess.com"]
[Source "ChessBase"]
[SourceQuality "1"]
[TimeControl "900+5"]

1. e4 {[%emt 0:00:04]} c6 {[%emt 0:00:02]} 2. Nc3 {[%emt 0:00:03]} d5 {[%emt 0:00:01]} 3. Nf3 {[%emt 0:00:02]} dxe4 {[%emt 0:00:03]} 4. Nxe4 {[%emt 0:00:03]} Nf6 {[%emt 0:00:01]} 5. Qe2 {[%emt 0:00:06]} Nxe4 {[%emt 0:00:02]} 6. Qxe4 {[%emt 0:00:02]} Qa5 {[%emt 0:00:01]} 7. Ne5 {[%emt 0:00:16]} f6 {[%emt 0:02:34]} 8. Nc4 {[%emt 0:01:03]} Qd5 {[%emt 0:00:09]} 9. Qh4 {[%emt 0:00:22]} b5 {[%emt 0:03:54]} 10. Ne3 {[%emt 0:00:25]} Qg5 {[%emt 0:00:42]} 11. Qxg5 {[%emt 0:00:44]} fxg5 {[%emt 0:00:01]} 12. d4 {[%emt 0:00:10]} e6 {[%emt 0:01:26]} 13. a4 {[%emt 0:00:42]} b4 {[%emt 0:00:41]} 14. Bc4 {[%emt 0:00:30]} Na6 {[%emt 0:00:31]} 15. O-O {[%emt 0:00:18]} Nc7 {[%emt 0:00:03]} 16. Re1 {[%emt 0:00:19]} Be7 {[%emt 0:01:52]} 17. Ng4 {[%emt 0:03:05]} Bf6 {[%emt 0:01:04]} 18. Ne5 {[%emt 0:00:36]} Bxe5 {[%emt 0:00:03]} 19. Rxe5 {[%emt 0:00:07]} h6 {[%emt 0:00:01]} 20. a5 {[%emt 0:01:08]} Nd5 {[%emt 0:00:10]} 21. Bd2 {[%emt 0:00:17]} Rb8 {[%emt 0:00:11]} 22. Ra4 {[%emt 0:00:51]} Bd7 {[%emt 0:00:04]} 23. Bxd5 {[%emt 0:00:51]} cxd5 {[%emt 0:00:02]} 24. Rxb4 {[%emt 0:00:02]} Rxb4 {[%emt 0:00:04]} 25. Bxb4 {[%emt 0:00:00]} a6 {[%emt 0:00:07]} 26. Re1 {[%emt 0:00:28]} Kf7 {[%emt 0:00:07]} 27. f3 {[%emt 0:00:29]} Rb8 {[%emt 0:00:14]} 28. c3 {[%emt 0:00:10]} Bb5 {[%emt 0:00:09]} 29. b3 {[%emt 0:00:37]} Bd3 {[%emt 0:00:23]} 30. Rc1 {[%emt 0:00:12]} Rb7 {[%emt 0:00:18]} 31. Kf2 {[%emt 0:00:04]} Rb8 {[%emt 0:00:10]} 32. Ke3 {[%emt 0:00:02]} Bg6 {[%emt 0:00:06]} 33. Ra1 {[%emt 0:00:13]} Bc2 {[%emt 0:00:25]} 34. Ra3 {[%emt 0:00:03]} Ke8 {[%emt 0:00:23]} 35. Kd2 {[%emt 0:00:05]} Bg6 {[%emt 0:00:03]} 36. Bd6 {[%emt 0:00:50]} Rc8 {[%emt 0:00:01]} 37. Be5 {[%emt 0:00:07]} Kf7 {[%emt 0:00:02]} 38. Ra4 {[%emt 0:00:14]} Rd8 {[%emt 0:00:43]} 39. Rb4 {[%emt 0:00:06]} Rd7 {[%emt 0:00:01]} 40. Rb6 {[%emt 0:00:03]} Ra7 {[%emt 0:00:02]} 41. c4 {[%emt 0:00:13]} dxc4 {[%emt 0:00:09]} 42. bxc4 {[%emt 0:00:00]} Kf8 {[%emt 0:00:03]} 43. Rb8+ {[%emt 0:00:19]} Ke7 {[%emt 0:00:12]} 44. Bxg7 {[%emt 0:00:17]} h5 {[%emt 0:00:01]} 45. Be5 {[%emt 0:00:09]} Be8 {[%emt 0:00:12]} 46. Rb6 {[%emt 0:00:11]} g4 {[%emt 0:00:13]} 47. c5 {[%emt 0:00:10]} Ra8 {[%emt 0:00:02]} 48. c6 {[%emt 0:00:07]} Kd8 {[%emt 0:00:02]} 49. c7+ {[%emt 0:00:05]} Kc8 {[%emt 0:00:05]} 50. Rb8+ {[%emt 0:00:03]} 1-0

[Event "FIDE Online Olympiad Top Division 2020"]
[Site "Online"]
[Date "2020.08.21"]
[Round "?"]
[White "chessdjw"]
[Black "amintabatabaei"]
[Result "1-0"]
[ECO "E97"]
[WhiteElo "2314"]
[BlackElo "2342"]
[Annotator "ChessBase"]
[PlyCount "97"]
[EventDate "2020.08.21"]
[SourceTitle "playchess.com"]
[Source "ChessBase"]
[SourceQuality "1"]
[TimeControl "900+5"]

1. d4 {[%emt 0:00:01]} Nf6 {[%emt 0:00:07]} 2. c4 {[%emt 0:00:01]} g6 {[%emt 0:00:21]} 3. Nc3 {[%emt 0:00:02]} Bg7 {[%emt 0:00:03]} 4. e4 {[%emt 0:00:02]} d6 {[%emt 0:00:01]} 5. Nf3 {[%emt 0:00:03]} O-O {[%emt 0:00:01]} 6. Be2 {[%emt 0:00:00]} e5 {[%emt 0:00:00]} 7. O-O {[%emt 0:00:01]} Nc6 {[%emt 0:00:01]} 8. d5 {[%emt 0:00:01]} Ne7 {[%emt 0:00:01]} 9. b4 {[%emt 0:00:01]} a5 {[%emt 0:00:00]} 10. bxa5 {[%emt 0:00:04]} c5 {[%emt 0:00:05]} 11. a4 {[%emt 0:00:03]} Rxa5 {[%emt 0:00:02]} 12. Bd2 {[%emt 0:00:06]} Ra6 {[%emt 0:00:01]} 13. Ra3 {[%emt 0:00:04]} Ne8 {[%emt 0:00:28]} 14. Nb5 {[%emt 0:01:40]} h6 {[%emt 0:00:21]} 15. Qc1 {[%emt 0:00:20]} Kh7 {[%emt 0:00:59]} 16. Bd3 {[%emt 0:01:57]} f5 {[%emt 0:01:44]} 17. exf5 {[%emt 0:00:07]} gxf5 {[%emt 0:00:31]} 18. Bc2 {[%emt 0:05:32]} Ng6 {[%emt 0:00:04]} 19. Qd1 {[%emt 0:01:39]} Nf6 {[%emt 0:01:58]} 20. g3 {[%emt 0:00:20]} e4 {[%emt 0:01:10]} 21. Ne1 {[%emt 0:00:03]} f4 {[%emt 0:00:01]} 22. gxf4 {[%emt 0:00:36]} Bf5 {[%emt 0:01:33]} 23. Rg3 {[%emt 0:00:59]} Qd7 {[%emt 0:00:42]} 24. Kh1 {[%emt 0:01:08]} h5 {[%emt 0:00:41]} 25. f3 {[%emt 0:00:44]} Bh6 {[%emt 0:01:27]} 26. Nc3 {[%emt 0:00:42]} e3 {[%emt 0:01:22]} 27. Bxe3 {[%emt 0:00:34]} h4 {[%emt 0:00:01]} 28. Rg5 {[%emt 0:00:14]} Bxg5 {[%emt 0:00:40]} 29. fxg5 {[%emt 0:00:02]} Bxc2 {[%emt 0:00:01]} 30. Qxc2 {[%emt 0:00:03]} Ng4 {[%emt 0:00:07]} 31. Bd2 {[%emt 0:00:17]} N4e5 {[%emt 0:00:11]} 32. Ne4 {[%emt 0:00:01]} Qh3 {[%emt 0:00:04]} 33. Rf2 {[%emt 0:00:05]} Ng4 {[%emt 0:02:01]} 34. Rg2 {[%emt 0:00:02]} Rxf3 {[%emt 0:00:03]} 35. Nxf3 {[%emt 0:00:06]} Qxf3 {[%emt 0:00:00]} 36. Nf6+ {[%emt 0:00:09]} Nxf6 {[%emt 0:00:48]} 37. gxf6 {[%emt 0:00:01]} Qf1+ {[%emt 0:00:06]} 38. Rg1 {[%emt 0:00:01]} Qf3+ {[%emt 0:00:01]} 39. Rg2 {[%emt 0:00:00]} Qf1+ {[%emt 0:00:13]} 40. Rg1 {[%emt 0:00:01]} Qxf6 {[%emt 0:00:01]} 41. Qd1 {[%emt 0:00:18]} Qf5 {[%emt 0:00:09]} 42. Rg5 {[%emt 0:00:02]} Qe4+ {[%emt 0:00:04]} 43. Kg1 {[%emt 0:00:01]} Qd4+ {[%emt 0:00:05]} 44. Kh1 {[%emt 0:00:12]} Nf4 {[%emt 0:00:15]} 45. Qb1+ {[%emt 0:00:08]} Kh8 {[%emt 0:00:03]} 46. Qf5 {[%emt 0:00:05]} Ra8 {[%emt 0:00:08]} 47. Qxf4 {[%emt 0:00:02]} Qa1+ {[%emt 0:00:01]} 48. Bc1 {[%emt 0:00:04]} Re8 {[%emt 0:00:05]} 49. Qxh4# {[%emt 0:00:01]} 1-0

[Event "FIDE Online Olympiad Top Division 2020"]
[Site "Online"]
[Date "2020.08.22"]
[Round "?"]
[White "Vogel, Roven"]
[Black "Liu, Yan"]
[Result "0-1"]
[ECO "E14"]
[WhiteElo "2312"]
[BlackElo "2386"]
[Annotator "ChessBase"]
[PlyCount "72"]
[EventDate "2020.08.21"]
[SourceTitle "playchess.com"]
[Source "ChessBase"]
[SourceQuality "1"]
[TimeControl "900+5"]

1. d4 {[%emt 0:00:05]} Nf6 {[%emt 0:00:02]} 2. c4 {[%emt 0:00:05]} e6 {[%emt 0:00:02]} 3. Nf3 {[%emt 0:00:04]} b6 {[%emt 0:00:01]} 4. e3 {[%emt 0:00:27]} Bb7 {[%emt 0:00:19]} 5. Bd3 {[%emt 0:00:02]} Bb4+ {[%emt 0:00:10]} 6. Bd2 {[%emt 0:00:52]} Bxd2+ {[%emt 0:00:05]} 7. Nbxd2 {[%emt 0:00:38]} d6 {[%emt 0:00:04]} 8. e4 {[%emt 0:00:18]} Qe7 {[%emt 0:00:56]} 9. O-O {[%emt 0:00:08]} e5 {[%emt 0:00:04]} 10. d5 {[%emt 0:02:49]} Nbd7 {[%emt 0:00:27]} 11. Ne1 {[%emt 0:00:25]} a5 {[%emt 0:00:30]} 12. g3 {[%emt 0:00:29]} Nc5 {[%emt 0:00:53]} 13. Bc2 {[%emt 0:00:06]} Bc8 {[%emt 0:00:08]} 14. Ng2 {[%emt 0:00:48]} Bh3 {[%emt 0:00:14]} 15. Re1 {[%emt 0:00:10]} h5 {[%emt 0:00:31]} 16. Ne3 {[%emt 0:00:40]} g6 {[%emt 0:00:54]} 17. b3 {[%emt 0:00:26]} Kf8 {[%emt 0:00:44]} 18. a3 {[%emt 0:00:05]} Kg7 {[%emt 0:00:05]} 19. b4 {[%emt 0:00:07]} Ncd7 {[%emt 0:00:49]} 20. Ba4 {[%emt 0:00:12]} h4 {[%emt 0:01:51]} 21. g4 {[%emt 0:01:24]} axb4 {[%emt 0:00:04]} 22. Bc6 {[%emt 0:01:50]} Rxa3 {[%emt 0:02:03]} 23. Rxa3 {[%emt 0:00:03]} bxa3 {[%emt 0:00:01]} 24. Qf3 {[%emt 0:00:00]} Nc5 {[%emt 0:01:54]} 25. Qxh3 {[%emt 0:00:03]} Nfxe4 {[%emt 0:00:19]} 26. Nxe4 {[%emt 0:00:02]} Nxe4 {[%emt 0:00:01]} 27. Nc2 {[%emt 0:00:12]} Ng5 {[%emt 0:00:12]} 28. Qxa3 {[%emt 0:00:06]} Qf6 {[%emt 0:00:07]} 29. Re3 {[%emt 0:00:51]} h3 {[%emt 0:00:48]} 30. f3 {[%emt 0:00:39]} Qf4 {[%emt 0:00:21]} 31. Ne1 {[%emt 0:00:37]} Rh4 {[%emt 0:00:19]} 32. Re2 {[%emt 0:00:49]} e4 {[%emt 0:00:47]} 33. Qc3+ {[%emt 0:00:02]} Kh7 {[%emt 0:00:26]} 34. Qe3 {[%emt 0:00:01]} Nxf3+ {[%emt 0:00:14]} 35. Nxf3 {[%emt 0:00:02]} Rxg4+ {[%emt 0:00:17]} 36. Kf1 {[%emt 0:00:12]} exf3 {[%emt 0:00:09]} 0-1

[Event "FIDE Online Olympiad Top Division 2020"]
[Site "Online"]
[Date "2020.08.24"]
[Round "?"]
[White "Schulze, Lara"]
[Black "Harika, Dronavalli"]
[Result "1/2-1/2"]
[ECO "C42"]
[WhiteElo "2310"]
[BlackElo "2425"]
[Annotator "ChessBase"]
[PlyCount "69"]
[EventDate "2020.08.21"]
[TimeControl "900+5"]

1. e4 {[%emt 0:00:02]} e5 {[%emt 0:00:04]} 2. Nf3 {[%emt 0:00:02]} Nf6 {[%emt 0:00:01]} 3. Nxe5 {[%emt 0:00:02]} d6 {[%emt 0:00:09]} 4. Nf3 {[%emt 0:00:02]} Nxe4 {[%emt 0:00:01]} 5. c4 {[%emt 0:00:01]} Nc6 {[%emt 0:00:09]} 6. Nc3 {[%emt 0:00:05]} Nxc3 {[%emt 0:00:18]} 7. dxc3 {[%emt 0:00:02]} Bf5 {[%emt 0:00:09]} 8. Nd4 {[%emt 0:00:09]} Nxd4 {[%emt 0:00:48]} 9. Qxd4 {[%emt 0:00:03]} Qe7+ {[%emt 0:00:12]} 10. Be3 {[%emt 0:00:20]} Qe4 {[%emt 0:00:25]} 11. Qxe4+ {[%emt 0:02:10]} Bxe4 {[%emt 0:00:01]} 12. f3 {[%emt 0:00:06]} Bg6 {[%emt 0:00:40]} 13. h4 {[%emt 0:01:29]} h5 {[%emt 0:00:05]} 14. Bd4 {[%emt 0:00:33]} O-O-O {[%emt 0:00:36]} 15. O-O-O {[%emt 0:00:16]} a6 {[%emt 0:01:10]} 16. a4 {[%emt 0:00:29]} Re8 {[%emt 0:00:41]} 17. a5 {[%emt 0:01:46]} Bf5 {[%emt 0:01:17]} 18. Kd2 {[%emt 0:02:02]} Rh6 {[%emt 0:01:09]} 19. Bd3 {[%emt 0:00:10]} Bxd3 {[%emt 0:00:30]} 20. Kxd3 {[%emt 0:00:00]} Rhe6 {[%emt 0:00:02]} 21. Bf2 {[%emt 0:00:40]} Kd7 {[%emt 0:00:27]} 22. Rhe1 {[%emt 0:00:12]} Rxe1 {[%emt 0:00:04]} 23. Rxe1 {[%emt 0:00:00]} Rxe1 {[%emt 0:00:17]} 24. Bxe1 {[%emt 0:00:00]} Ke6 {[%emt 0:00:17]} 25. Ke4 {[%emt 0:01:55]} Be7 {[%emt 0:00:15]} 26. Bg3 {[%emt 0:00:58]} g6 {[%emt 0:00:14]} 27. Bf2 {[%emt 0:00:35]} c6 {[%emt 0:00:12]} 28. Kd3 {[%emt 0:00:16]} Kf5 {[%emt 0:00:14]} 29. Bg3 {[%emt 0:00:38]} Ke6 {[%emt 0:00:27]} 30. Ke4 {[%emt 0:00:03]} Bd8 {[%emt 0:00:03]} 31. b4 {[%emt 0:00:06]} Be7 {[%emt 0:00:39]} 32. Bf2 {[%emt 0:00:06]} Bd8 {[%emt 0:00:02]} 33. Bg3 {[%emt 0:00:02]} Be7 {[%emt 0:00:06]} 34. Bf2 {[%emt 0:00:02]} Bd8 {[%emt 0:00:01]} 35. Bg3 {[%emt 0:00:02]} 1/2-1/2